[Event "FRA-ch Youth U16 2018"]
[Site "Agen"]
[Date "2018.04.15"]
[Round "1"]
[White "Aubert, Estee"]
[Black "Henry, Aziliz"]
[Result "1-0"]
[ECO "E62"]
[WhiteElo "1892"]
[BlackElo "1397"]
[Annotator "NA RC"]
[PlyCount "79"]
[EventDate "2018.??.??"]
[EventType "swiss"]
[EventCountry "FRA"]
[SourceTitle "playchess.com"]
[Source "ChessBase"]
[SourceQuality "1"]
[TimeControl "5400+30"]

1. Nf3 {[%emt 0:00:00]} d6 {[%emt 0:00:07]} 2. d4 {[%emt 0:00:00]} Nf6 {[%emt 0:00:08]} 3. g3 {[%emt 0:00:56]} g6 {[%emt 0:00:12]} 4. Bg2 {[%emt 0:00:10]} Bg7 {[%emt 0:00:55]} 5. O-O {[%emt 0:01:34]} O-O {[%emt 0:02:27]} 6. c4 {[%emt 0:00:42]} Nc6 {[%emt 0:02:02]} 7. Nc3 {[%emt 0:03:54]} e5 {[%emt 0:02:12]} 8. dxe5 {[%emt 0:05:05]} dxe5 {[%emt 0:03:52]} 9. Qa4 {[%emt 0:08:28]} Bd7 {[%emt 0:07:36]} 10. Qb5 {[%emt 0:14:56]} b6 {[%emt 0:07:03]} 11. Nxe5 {[%emt 0:15:39]} Nxe5 {[%emt 0:05:12]} 12. Qxe5 {[%emt 0:00:05]} Re8 {[%emt 0:03:58]} 13. Qf4 {[%emt 0:00:31]} Rb8 {[%emt 0:03:19]} 14. Rd1 {[%emt 0:00:45]} Qc8 {[%emt 0:06:25]} 15. a4 {[%emt 0:05:19]} c5 {[%emt 0:05:17]} 16. a5 {[%emt 0:01:57]} b5 {[%emt 0:03:07]} 17. cxb5 $16 {[%emt 0:01:58]} Bxb5 {[%emt 0:00:25]} 18. Nxb5 {[%emt 0:00:12]} Rxb5 {[%emt 0:00:11]} 19. Qc4 {[%emt 0:06:11]} Rb4 {[%emt 0:03:26]} 20. Qc2 {[%emt 0:00:08]} Ne4 {[%emt 0:02:11]} 21. Rd3 {[%emt 0:11:17]} Bd4 {[%emt 0:09:18]} 22. e3 {[%emt 0:01:29]} Bg7 {[%emt 0:05:05]} 23. Rb3 {[%emt 0:02:41]} Qf5 {[%emt 0:03:05]} 24. f3 {[%emt 0:03:55]} Nxg3 {[%emt 0:03:09]} 25. e4 {[%emt 0:05:06]} Bd4+ {[%emt 0:00:51]} 26. Be3 {[%emt 0:00:04]} Bxe3+ {[%emt 0:01:56]} 27. Rxe3 {[%emt 0:00:03]} Qg5 {[%emt 0:00:47]} 28. f4 {[%emt 0:00:28]} Qxf4 {[%emt 0:03:24]} 29. Rxg3 {[%emt 0:00:05]} Qe5 {[%emt 0:00:44]} 30. Rc3 {[%emt 0:00:48]} Qd4+ {[%emt 0:00:57]} 31. Kh1 {[%emt 0:00:11]} Re5 {[%emt 0:00:49]} 32. Rd1 {[%emt 0:00:31]} Rxb2 {[%emt 0:01:37]} 33. Rxd4 {[%emt 0:00:22]} Rxc2 {[%emt 0:00:07]} 34. Rd8+ {[%emt 0:00:05]} Kg7 {[%emt 0:00:07]} 35. Rxc2 {[%emt 0:00:03]} c4 {[%emt 0:00:29]} 36. Rd5 {[%emt 0:00:26]} Rxd5 {[%emt 0:00:22]} 37. exd5 {[%emt 0:00:04]} Kf6 {[%emt 0:00:08]} 38. Rxc4 {[%emt 0:00:13]} Ke7 {[%emt 0:00:10]} 39. Rc7+ {[%emt 0:00:06]} Kd6 {[%emt 0:00:09]} 40. Rxa7 {[%emt 0:00:09]} 1-0

[Event "FRA-ch Youth U16 2018"]
[Site "Agen"]
[Date "2018.04.15"]
[Round "1"]
[White "Bellahcene, Meriem"]
[Black "Lemiere, Charlotte"]
[Result "1-0"]
[ECO "C02"]
[WhiteElo "1862"]
[BlackElo "1380"]
[Annotator "NA RC"]
[PlyCount "105"]
[EventDate "2018.??.??"]
[EventType "swiss"]
[EventCountry "FRA"]
[SourceTitle "playchess.com"]
[Source "ChessBase"]
[SourceQuality "1"]
[TimeControl "5400+30"]

1. e4 {[%emt 0:00:00]} e6 {[%emt 0:00:13]} 2. d4 {[%emt 0:00:00]} d5 {[%emt 0:00:20]} 3. e5 {[%emt 0:00:10]} c5 {[%emt 0:00:46]} 4. c3 {[%emt 0:00:12]} Qb6 {[%emt 0:00:32]} 5. Nf3 {[%emt 0:00:41]} Nh6 {[%emt 0:02:04]} 6. a3 {[%emt 0:01:45]} Nf5 {[%emt 0:04:16]} 7. b4 {[%emt 0:01:59]} cxb4 {[%emt 0:04:07]} 8. cxb4 {[%emt 0:00:09]} Nc6 {[%emt 0:03:07]} 9. Bb2 {[%emt 0:00:56]} Bd7 {[%emt 0:02:43]} 10. Be2 {[%emt 0:01:33]} Be7 {[%emt 0:01:41]} 11. O-O {[%emt 0:00:50]} O-O {[%emt 0:00:31]} 12. Qd3 {[%emt 0:01:34]} a5 {[%emt 0:05:49]} 13. b5 {[%emt 0:07:45]} Na7 {[%emt 0:02:09]} 14. a4 {[%emt 0:00:18]} Rfc8 {[%emt 0:04:11]} 15. Ba3 {[%emt 0:06:20]} Qd8 {[%emt 0:02:54]} 16. Nbd2 {[%emt 0:10:53]} b6 {[%emt 0:02:12]} 17. Bxe7 {[%emt 0:07:23]} Qxe7 {[%emt 0:00:41]} 18. Rfc1 $16 {[%emt 0:04:25]} Be8 {[%emt 0:01:34]} 19. Nf1 {[%emt 0:08:33]} Rab8 {[%emt 0:06:21]} 20. g4 {[%emt 0:03:03]} Nh6 {[%emt 0:02:50]} 21. Ne3 {[%emt 0:01:24]} Kh8 {[%emt 0:01:53]} 22. g5 {[%emt 0:09:56]} Ng8 {[%emt 0:01:58]} 23. Kh1 {[%emt 0:04:09]} Rxc1+ {[%emt 0:02:10]} 24. Rxc1 {[%emt 0:00:04]} Rc8 {[%emt 0:00:16]} 25. Rxc8 {[%emt 0:00:20]} Nxc8 {[%emt 0:00:09]} 26. Qc2 {[%emt 0:00:41]} Qd7 {[%emt 0:02:22]} 27. Bd3 {[%emt 0:02:07]} g6 {[%emt 0:01:09]} 28. Ng4 {[%emt 0:03:11]} Nce7 {[%emt 0:01:08]} 29. Nf6 {[%emt 0:03:25]} Nxf6 {[%emt 0:02:14]} 30. gxf6 {[%emt 0:00:14]} Ng8 {[%emt 0:00:26]} 31. Ng5 {[%emt 0:03:18]} h6 {[%emt 0:01:02]} 32. Nh3 {[%emt 0:02:06]} Qd8 {[%emt 0:01:59]} 33. Nf4 {[%emt 0:00:59]} Kh7 {[%emt 0:00:55]} 34. Bxg6+ {[%emt 0:06:12]} Kh8 {[%emt 0:08:42]} 35. Bh5 {[%emt 0:01:38]} Qd7 {[%emt 0:03:40]} 36. Qc3 {[%emt 0:00:19]} Qd8 {[%emt 0:00:49]} 37. Qg3 {[%emt 0:00:57]} Nxf6 {[%emt 0:00:24]} 38. exf6 {[%emt 0:00:04]} Qxf6 {[%emt 0:00:04]} 39. Ne2 {[%emt 0:00:25]} Qf5 {[%emt 0:01:15]} 40. Qe5+ {[%emt 0:00:15]} Qxe5 {[%emt 0:00:28]} 41. dxe5 {[%emt 0:00:04]} Kg7 {[%emt 0:00:33]} 42. Nd4 {[%emt 0:01:57]} Bd7 {[%emt 0:01:14]} 43. Kg2 {[%emt 0:00:10]} f6 {[%emt 0:00:12]} 44. f4 {[%emt 0:00:35]} fxe5 {[%emt 0:00:47]} 45. fxe5 {[%emt 0:00:04]} Kf8 {[%emt 0:01:04]} 46. Kf3 {[%emt 0:00:27]} Ke7 {[%emt 0:00:10]} 47. Bg4 {[%emt 0:00:58]} Kf7 {[%emt 0:00:19]} 48. Kg3 {[%emt 0:00:10]} Ke7 {[%emt 0:00:32]} 49. Kh4 {[%emt 0:00:04]} Kf7 {[%emt 0:00:07]} 50. Kh5 {[%emt 0:00:05]} Kg7 {[%emt 0:00:06]} 51. Nxe6+ {[%emt 0:00:21]} Bxe6 {[%emt 0:00:22]} 52. Bxe6 {[%emt 0:00:04]} d4 {[%emt 0:00:06]} 53. Bf5 {[%emt 0:00:05]} 1-0

[Event "FRA-ch Youth U16 2018"]
[Site "Agen"]
[Date "2018.04.15"]
[Round "1"]
[White "Mercier, Pauline"]
[Black "Djidjeli, Sarah"]
[Result "0-1"]
[ECO "A06"]
[WhiteElo "1399"]
[BlackElo "1903"]
[Annotator "NA RC"]
[PlyCount "48"]
[EventDate "2018.??.??"]
[EventType "swiss"]
[EventCountry "FRA"]
[SourceTitle "playchess.com"]
[Source "ChessBase"]
[SourceQuality "1"]
[TimeControl "5400+30"]

1. Nf3 {[%emt 0:00:00]} d5 {[%emt 0:00:04]} 2. g3 {[%emt 0:00:00]} Nf6 {[%emt 0:00:22]} 3. Bg2 {[%emt 0:00:00]} e6 {[%emt 0:01:41]} 4. b3 {[%emt 0:00:52]} Be7 {[%emt 0:00:45]} 5. Bb2 {[%emt 0:00:12]} O-O {[%emt 0:04:01]} 6. O-O {[%emt 0:01:08]} c5 {[%emt 0:05:36]} 7. d3 {[%emt 0:04:23]} Nc6 {[%emt 0:00:29]} 8. Nbd2 {[%emt 0:01:26]} Qc7 {[%emt 0:02:49]} 9. d4 {[%emt 0:10:18]} cxd4 {[%emt 0:07:22]} 10. Nxd4 {[%emt 0:00:15]} Nxd4 {[%emt 0:00:07]} 11. Bxd4 {[%emt 0:00:10]} e5 {[%emt 0:00:11]} 12. Bb2 {[%emt 0:00:37]} Rd8 {[%emt 0:01:17]} 13. Nf3 {[%emt 0:06:31]} d4 {[%emt 0:05:20]} 14. Qc1 {[%emt 0:09:07]} Nd5 {[%emt 0:06:04]} 15. Rd1 {[%emt 0:06:36]} Bf5 {[%emt 0:06:32]} 16. Ne1 {[%emt 0:03:18]} Be6 {[%emt 0:16:28]} 17. a3 {[%emt 0:12:04]} Rac8 $17 {[%emt 0:01:05]} 18. e3 {[%emt 0:11:12]} dxe3 {[%emt 0:01:59]} 19. fxe3 {[%emt 0:00:09]} Nxe3 {[%emt 0:03:59]} 20. Rxd8+ {[%emt 0:06:57]} Rxd8 {[%emt 0:00:06]} 21. b4 {[%emt 0:02:12]} Qb6 {[%emt 0:01:17]} 22. Bxe5 {[%emt 0:11:19]} Ng4+ {[%emt 0:00:41]} 23. Kh1 {[%emt 0:00:27]} Nf2+ {[%emt 0:00:20]} 24. Kg1 {[%emt 0:00:13]} Nh3+ {[%emt 0:00:07] Qd1} 0-1

[Event "FRA-ch Youth U16 2018"]
[Site "Agen"]
[Date "2018.04.15"]
[Round "1"]
[White "Barth, Adele"]
[Black "Conti, Anne-Marie"]
[Result "0-1"]
[ECO "E10"]
[WhiteElo "1386"]
[BlackElo "1865"]
[Annotator "NA RC"]
[PlyCount "68"]
[EventDate "2018.??.??"]
[EventType "swiss"]
[EventCountry "FRA"]
[SourceTitle "playchess.com"]
[Source "ChessBase"]
[SourceQuality "1"]
[TimeControl "5400+30"]

1. c4 {[%emt 0:00:00]} Nf6 {[%emt 0:00:12]} 2. d4 {[%emt 0:00:00]} e6 {[%emt 0:00:22]} 3. Nf3 {[%emt 0:00:00]} c5 {[%emt 0:00:16]} 4. Nc3 {[%emt 0:00:05]} g6 {[%emt 0:02:38]} 5. e3 {[%emt 0:04:59]} Bg7 {[%emt 0:02:10]} 6. Be2 {[%emt 0:00:50]} O-O {[%emt 0:02:29]} 7. O-O {[%emt 0:00:34]} cxd4 {[%emt 0:03:09]} 8. exd4 {[%emt 0:01:24]} b6 {[%emt 0:01:03]} 9. d5 {[%emt 0:13:53]} Bb7 {[%emt 0:03:50]} 10. Re1 {[%emt 0:14:55]} Na6 {[%emt 0:04:54]} 11. Be3 {[%emt 0:16:01]} Ng4 {[%emt 0:09:13]} 12. Bf4 {[%emt 0:16:17]} e5 {[%emt 0:00:35]} 13. Bg5 {[%emt 0:05:32]} f6 {[%emt 0:02:57]} 14. Bd2 {[%emt 0:01:39]} d6 {[%emt 0:04:39]} 15. h3 $11 {[%emt 0:02:36]} Nh6 {[%emt 0:00:56]} 16. a3 {[%emt 0:06:46]} Nf7 {[%emt 0:01:33]} 17. b4 {[%emt 0:00:30]} f5 {[%emt 0:00:33]} 18. Bc1 {[%emt 0:05:54]} Rc8 {[%emt 0:03:17]} 19. Bb2 {[%emt 0:01:14]} Nb8 {[%emt 0:02:07]} 20. Rc1 {[%emt 0:00:58]} g5 {[%emt 0:09:14]} 21. Nd2 {[%emt 0:00:57]} Nd7 {[%emt 0:03:17]} 22. Bh5 {[%emt 0:01:50]} Qf6 {[%emt 0:03:51]} 23. Nb5 {[%emt 0:01:40]} a6 {[%emt 0:01:27]} 24. Nc3 {[%emt 0:00:04]} Qh6 {[%emt 0:00:32]} 25. Be2 {[%emt 0:00:50]} e4 {[%emt 0:02:39]} 26. Qc2 {[%emt 0:00:45]} Nfe5 {[%emt 0:01:05]} 27. Qb3 {[%emt 0:01:17]} g4 {[%emt 0:00:27]} 28. Nf1 {[%emt 0:01:27]} gxh3 {[%emt 0:00:11]} 29. g3 {[%emt 0:00:28]} f4 {[%emt 0:00:21]} 30. Kh2 {[%emt 0:00:35]} fxg3+ {[%emt 0:01:07]} 31. Nxg3 {[%emt 0:00:51]} Rxf2+ {[%emt 0:00:35]} 32. Kh1 {[%emt 0:00:24]} Nf3 {[%emt 0:04:00]} 33. Bxf3 {[%emt 0:00:22]} exf3 {[%emt 0:01:07]} 34. Rg1 {[%emt 0:00:19]} Qd2 {[%emt 0:01:47]} 0-1